Cogmind - Beta 14 @@@ ROGUE MODE // 2024.10.08 @ 21:37:40 Player: carterz30cal Result: Destroyed by S-10 Pest with Light Assault Rifle Performance ------------- Evolutions (0) 0 Regions Visited (1) 200 Robots Destroyed (33) 165 Value Destroyed (618) 618 Prototype IDs (2) 40 Alien Tech Used (0) 0 Bonus (0) 0 TOTAL SCORE: 1023 Bonus ------- None Cogmind --------- Core Integrity 0/250 Matter 296/300 Energy 160/160 System Corruption 0% Temperature Cool (12) Movement Treading (320) Ox2 Location -10/Materials Parts ------- > --- POWER (1) -------- Light Nuclear Core > --- PROPULSION (2) --- Light Treads Light Treads > --- UTILITY (2) ------ Huge Storage Unit Targeting Computer > --- WEAPON (2) ------- Small Laser Light Assault Rifle > --- INVENTORY (25) --- Light Ion Engine Medium Matter Pod (100) Signal Interpreter Targeting Computer Tractor Beam Tractor Beam Peak State ------------ > --- POWER ------------ Light Ion Engine > --- PROPULSION ------- Light Treads Light Treads > --- UTILITY ---------- Small Storage Unit Improved Terrain Scanner > --- WEAPON ----------- Assault Rifle Assault Rifle > --- INVENTORY -------- Medium Matter Pod EM Pulse Gun [Rating: 9] Favorites ----------- Power Light Ion Engine Engine Light Ion Engine Power Core Light Nuclear Core Propulsion Light Treads Treads Light Treads Utility Huge Storage Unit Device Improved Terrain Scanner Storage Huge Storage Unit Processor Targeting Computer Weapon Assault Rifle Energy Gun Small Laser Ballistic Gun Assault Rifle Build | -11 -10 ------- Run | Yrd Mat Slots Evolved . | . . Power . | . . Propulsion . | . . Utility . | . . Weapon . | . . Parts Attached 17 | 7 10 Power 4 | 1 3 Engine 3 | 1 2 Core 1 | . 1 Reactor . | . . Propulsion 4 | 2 2 Treads 4 | 2 2 Leg . | . . Wheel . | . . Hover . | . . Flight . | . . Utility 4 | 2 2 Device 1 | 1 . Storage 2 | 1 1 Processor 1 | . 1 Hackware . | . . Protection . | . . Artifact . | . . Weapon 5 | 2 3 Energy Gun 2 | . 2 Energy Cannon . | . . Ballistic Gun 3 | 2 1 Ballistic Cannon . | . . Launcher . | . . Special Weapon . | . . Impact Weapon . | . . Slashing Weapon . | . . Piercing Weapon . | . . Special Melee Weapon . | . . Unidentified Prototypes . | . . Parts Lost 5 | . 5 Power 1 | . 1 Propulsion 1 | . 1 Utility . | . . Weapon 3 | . 3 Highest Loss Streak 5 | . 5 To Critical Strikes . | . . Average Slot Usage (%) 97 | . 97 Engine 9 | . 9 Core 4 | . 4 Treads 27 | . 27 Device 5 | . 5 Storage 14 | . 14 Processor 8 | . 8 Energy Gun 6 | . 6 Ballistic Gun 21 | . 21 Peak Build Rating 9 | 9 9 Average Rating 8 | 8 8 On Entrance 4 | . 9 Naked Turns . | . . Heaviest Build 90 | 13 90 Greatest Support 40 | 40 40 Greatest Overweight (x) 4 | . 4 Average Overweight (x) 1 | . 1 Largest Inventory Capacity 25 | 8 25 Average Capacity 18 | 7 23 Most Carried 7 | 2 7 Average Carried 3 | 1 4 Final Capacity 25 | 8 25 Final Carried 6 | 2 6 Class Distribution -------------------- 80% | Mutant 19% | Scavenger-Mutant Dominant Class ---------------- Mutant | -10/Materials Resources | -11 -10 ----------- Run | Yrd Mat Matter Collected 861 | 351 510 Remotely . | . . Salvage Created 1051 | 284 767 Parts 79 | 35 44 Haulers Intercepted 2 | . 2 Recyclers Shooed 1 | . 1 Parts Field Recycled . | . . Retrieved Matter . | . . Parts Self-Destructed . | . . Prevented . | . . Kills | -11 -10 ------- Run | Yrd Mat Combat Hostiles Destroyed 17 | . 17 Guns 17 | . 17 Classes Destroyed 7 | 3 4 Worker 4 | 4 . Tunneler 8 | 8 . Hauler 2 | . 2 Recycler 1 | 1 . Watcher 1 | . 1 Swarmer 3 | . 3 Grunt 14 | . 14 Best Kill Streak 4 | 4 3 Combat Bots Only 3 | . 3 Max Kills in Single Turn 2 | 2 1 Gunslinging . | . . Exploded . | . . Melee . | . . Uniques/NPCs Destroyed . | . . Combat | -11 -10 -------- Run | Yrd Mat Hostile Shots Fired 109 | . 109 Missed 21 | . 21 Damage Taken 1023 | . 1023 Core 250 | . 250 Absorbed by Shields . | . . Regen/Repaired (Parts) 119 | . 119 Core Remaining (%) 100 | 100 . Volleys Fired 98 | 26 72 Largest 2 | 2 2 Hottest 60 | 40 60 Shots Fired 180 | 52 128 Gun 180 | 52 128 Cannon . | . . Launcher . | . . Special . | . . Kinetic 158 | 52 106 Thermal 14 | . 14 Explosive . | . . Electromagnetic 8 | . 8 Robot Hit Streak 12 | 4 12 Robot Miss Streak 3 | 2 3 Penetration Max . | . . Secondary Targets . | . . Shots Hit Robots 110 | 26 84 Core Hits 54 | 14 40 Critical Kills . | . . Critical Parts Destroyed 1 | . 1 Critical Strikes 1 | . 1 Destroy 1 | . 1 Melee Attacks . | . . Impact . | . . Slashing . | . . Piercing . | . . Sneak Attacks . | . . Combat Hostiles . | . . Follow-up Attacks . | . . Damage Inflicted 1342 | 327 1015 Guns 1342 | 327 1015 Cannons . | . . Explosions . | . . Melee . | . . Ramming . | . . Kinetic 1138 | 327 811 Thermal 138 | . 138 Explosive . | . . Electromagnetic 66 | . 66 Impact . | . . Slashing . | . . Piercing . | . . Highest Corruption . | . . Average Corruption . | . . Corruption Purged . | . . Corruption Blocked . | . . Overload Shots . | . . Overflow Damage . | . . Projectiles . | . . Explosions . | . . Melee . | . . Knockbacks . | . . Impact . | . . Kinetic . | . . Secondary . | . . Self-Inflicted Damage . | . . Shots . | . . Rammed . | . . Targets Rammed . | . . Kicked . | . . Crushed . | . . Highest Temperature 78 | 6 78 Average Temperature 26 | 6 26 Received Heat Transfer 534 | . 534 Siege Activations . | . . Robots Corrupted . | . . Combat Hostiles . | . . Parts Fried . | . . Impact Corruptions . | . . Robots Melted . | . . Combat Hostiles . | . . Parts Melted . | . . Heat Transferred 300 | . 300 Parts Sabotaged . | . . Parts Stolen . | . . Parts Stripped . | . . Power Chain Reactions . | . . Alert | -11 -10 ------- Run | Yrd Mat Peak Influence 194 | 55 194 Initial 6 | . 6 Average 67 | 16 91 Maximum Alert Level . | . . Low Security (%) 100 | 100 100 Level 1 . | . . Level 2 . | . . Level 3 . | . . Level 4 . | . . Level 5 . | . . High Security . | . . Max Security . | . . Squads Dispatched 6 | . 6 Investigation 5 | . 5 Extermination . | . . Reinforcement 1 | . 1 Assault . | . . Garrison . | . . Intercept . | . . Searches Triggered . | . . Construction Impeded . | . . Haulers Reinforced . | . . Active Scanning Responses . | . . Cargo Convoy Interrupts . | . . Stealth | -11 -10 --------- Run | Yrd Mat Distress Signals 5 | . 5 Communications Jammed . | . . Distress Signals . | . . Times Spotted 33 | . 33 Peak Tracking Total 6 | . 6 Tactical Retreats 3 | . 3 Traps | -11 -10 ------- Run | Yrd Mat Traps Triggered 3 | . 3 Indirectly . | . . Trap Hack Attempts . | . . Triggered . | . . Disarmed . | . . Reprogrammed . | . . Reused . | . . Traps Extracted . | . . Installed . | . . Triggered . | . . Machines | -11 -10 ---------- Run | Yrd Mat Machines Disabled . | . . Max in Single Turn . | . . Machines Repaired . | . . Machines Dismantled . | . . Machines Sabotaged . | . . Overloaded Fab Kills . | . . Hacking | -11 -10 --------- Run | Yrd Mat Machines Accessed 6 | . 6 Terminals 4 | . 4 Fabricators . | . . Repair Stations 1 | . 1 Recycling Units 1 | . 1 Scanalyzers . | . . Garrison Access . | . . Total Hacks 22 | . 22 Successful 11 | . 11 Failed 11 | . 11 Catastrophic 1 | . 1 Database Lockouts . | . . Manual 16 | . 16 Terminals 13 | . 13 Fabricators . | . . Repair Stations 2 | . 2 Recycling Units 7 | . 7 Scanalyzers . | . . Garrison Access . | . . Terminal Hacks 2 | . 2 Prototype ID Bank 1 | . 1 Emergency Access Points 1 | . 1 Fabricator Hacks . | . . Repair Station Hacks 2 | . 2 Scan Component 1 | . 1 Repair 1 | . 1 Recycling Unit Hacks . | . . Scanalyzer . | . . Garrison Access Hacks . | . . Unauthorized Hacks 6 | . 6 Terminals 5 | . 5 Assimilate 4 | . 4 Botnet 1 | . 1 Fabricators . | . . Repair Stations . | . . Recycling Units 1 | . 1 Reject 1 | . 1 Scanalyzers . | . . Garrison Access . | . . Data Cores Recovered . | . . Used . | . . Hacking Detections 5 | . 5 Full Trace Events 5 | . 5 Feedback Events . | . . Feedback Blocked . | . . Robot Schematics Acquired . | . . Robots Built . | . . Authchips . | . . Time . | . . Total Robot Build Rating . | . . Part Schematics Acquired . | . . Parts Built . | . . Authchips . | . . Time . | . . Total Part Build Rating . | . . Parts Repaired 1 | . 1 Time 26 | . 26 Parts Recycled . | . . Recycled Matter . | . . Retrieved Matter . | . . Retrieved Components . | . . Parts Scanalyzed . | . . Part Schematics Acquired . | . . Parts Damaged . | . . Bothacking | -11 -10 ------------ Run | Yrd Mat Used RIF Installer . | . . Robots Hacked . | . . Non-combat . | . . Combat . | . . Robot Hacks Applied . | . . Relay Couplers Released . | . . Fabnet Peak Effective % . | . . Robots Rewired . | . . Allies Hacked . | . . Hacks Repelled . | . . Allies | -11 -10 -------- Run | Yrd Mat Total Allies . | . . Largest Group . | . . Highest-Rated Group . | . . Highest-Rated Ally . | . . Total Orders . | . . Ally Attacks . | . . Total Damage . | . . Kills . | . . Allies Corrupted . | . . Allies Melted . | . . Intel | -11 -10 ------- Run | Yrd Mat Robot Analysis Total . | . . Derelict Logs Recovered . | . . Drone Launches . | . . Drone Recoveries . | . . Exploration | -11 -10 ------------- Run | Yrd Mat Turns Passed 2286 | 728 1558 Spaces Moved 645 | 231 414 Core 3 | 3 . Treads 642 | 228 414 Legs . | . . Wheels . | . . Hover . | . . Flight . | . . Fastest Speed 50 | 50 160 Average Speed 243 | 158 291 Slowest Speed 480 | 160 480 Overloaded Moves . | . . Propulsion Burnouts . | . . Robots Hopped . | . . Cave-ins Triggered . | . . Exploration Rate (%) 36 | 13 60 Regions Visited 1 Branch Regions . Pre-discovered Areas . | . . Known Exits Taken . | . . Unknown Exits Taken 1 | 1 . Scrap Searched . | . . Spaces Dug . | . . Terrain Destroyed . | . . Melee . | . . Projectile . | . . AOE . | . . Terrain Rammed . | . . Walls Destroyed . | . . Machines Disabled . | . . Actions | -11 -10 --------- Run | Yrd Mat Total 1179 | 537 642 Wait 408 | 272 136 Move 644 | 230 414 Hop . | . . Pick Up 9 | 2 7 Fast Attach 12 | 7 5 Attach 2 | . 2 Detach . | . . Swap 3 | . 3 Drop 3 | . 3 Fire 98 | 26 72 Melee . | . . Ram . | . . Kick . | . . Crush . | . . Escape Stasis . | . . Rewire . | . . Trap . | . . Miscellaneous . | . . Route ------- -11/Scrapyard -10/Materials (discovered 2 exits: [*Mat] / [*Min]) History --------- Turn | Location | Event 2 | -11/Scrapyard | Met Revision 17 8 | -11/Scrapyard | Discovered new exit (range 16) 729 | -11/Scrapyard | Entered Materials 730 | -10/Materials | Build established: Mutant 1573 | -10/Materials | Core integrity fell below 50% 1607 | -10/Materials | Core integrity fell below 20% 1623 | -10/Materials | Lost 5 parts (1p1n3w) 1687 | -10/Materials | Discovered new exit (range 9) 1912 | -10/Materials | Repaired Lgt. Treads 2074 | -10/Materials | Discovered new exit (range 13) 2144 | -10/Materials | Build established: Scavenger-Mutant 2287 | -10/Materials | Destroyed by S-10 Pest with Light Assault Rifle Last Messages --------------- 01941_ Triggered Alarm Trap. 01941_ An alarm sounds. 01941_ ALERT: Alarm triggered, dispatching investigation squad. 01945_ Connecting with Terminal... >>Access(Emergency) Found 1 emergency access door: (41,44) Map updated. >>Trojan(Assimilate) Trojan loaded successfully. Testing... System interface override in place. 01958_ U-05 Engineer lays Concrete. 02007_ G-34 Mercenary destroyed. 02008_ Acquired 38 matter. 02043_ K-01 Serf cleans the Matter Pump. 02074_ EXIT=FOUND 02120_ ALERT: Hostiles spotted, dispatching reinforcements to Terminal M002. 02284_ W-16 Scout sends out distress signal. Map ----- +----------------------------------------------------+ | ????????????????????????????###+## | | ????????????????????????????# | | ????????????????????????????# | | ????????????????????????????# | | ????????????????????????????# ## | | ????????????????????????????# ## | | ????????????????????????????+ ## | | ????????????????????????????# ## | | ????????????????????????????# # | | ????# ??????????????????????# # | | ????# ?????"????????????????# # | | ????# ???""????????????????# +[ | | ????# ??""????????????????# #= | | ????# ?? ????????????????# # | | ????# ###+################# # | | ????# # | | ????# # | | ????# """ !## | | ????# """ """ """ """ "R" ## | | ????# """ """ """ """ " " | | ????# """ """ """ """ =% | | ????# [ | | ????# =! | | ????# #################+## | | ????# # #?# *% # | | ????# s@ / #?# "T" # | | ????# s# #?# # | | ????# # #?# # | | ????# # """ """ #?# # | | ????# # """ """ #?# ####### | | ????# # """ """ #?########?????? | | ????# # #??????????????? | | ????# ###########??????????????? | | ????# #????????????????????????? | | ????# < #????????????????????????? | | ????# #????????????????????????? | | ????####?????????????????????????? | | ?????????????????????????????????? | | ?????????????????????????????????? | | ?????????????????????????????????? | | ?????????????????????????????????? | | | | | | | | | | | | | | | | | | | +----------------------------------------------------+ Best States ------------- Heat Dissipation 25 Energy Generation 14 Energy Capacity 250 Matter Stores 300 Matter Capacity 300 Sight Range 16 Terrain Scan Range 16 Terrain Scan Density 10 Evasion (%) 40 Targeting Accuracy 5 Recoil Reduction 2 Item Schematics ----------------- None Robot Schematics ------------------ None Fabricated ------------ Nothing Alien Tech Used ----------------- None Achievements -------------- None Challenges ------------ None Game ------ Seed VoltaicCentriumTearclaws Manual? 0 Play Time 00:13:17 Cumulative 6.8 hours Start 2024.10.08 @ 21:20:51 End 2024.10.08 @ 21:37:40 Sessions 1 Manual Loads 0 Difficulty Rogue Special Mode None Game No. 12 Rogue 12 Adventurer 0 Explorer 0 Win Type - Total 0 Types 0/0/0/0/0/0/0/0/0 Lore% 2 Gallery% 12 Achievement% 14 Wizard Run 0 Options --------- Layout 0 ASCII 0 Keyboard 0 Movement Arrows Keybinds 0 Fullscreen 1 Font 18/Smallcaps Map View 76x50 Zoom Use 0% Tactical HUD 1 Map Filters NONE Filters NONE Steam 1 RUN: 0ab40c97-9a6b-48bf-9c5e-d1f07c0bb423